fUST/lending_fUST_20240802
["ID","MTS","AMOUNT","RATE_DAILY","PERIOD"]
[333876462,1722589847948,-848.28,0.0001452,2]
[333876463,1722589847957,-500.0,0.0001452,2]
[333876464,1722589847970,-500.0,0.0001452,2]
[333876465,1722589847980,-500.0,0.0001452,2]
[333876466,1722589847989,-500.0,0.0001452,2]
[333876467,1722589847998,-644.32,0.0001452,2]
[333876468,1722589848007,-500.0,0.0001452,2]
[333876469,1722589848016,-500.0,0.0001452,2]
[333876470,1722589848025,-898.01,0.0001452,2]
[333876471,1722589848035,-500.0,0.0001452,2]
[333876472,1722589848048,-500.0,0.0001452,2]
[333876473,1722589848058,-500.0,0.0001452,2]
[333876474,1722589848068,-500.0,0.0001452,2]
[333876475,1722589848077,-500.0,0.0001452,2]
[333876476,1722589848087,-500.0,0.0001452,2]
[333876477,1722589848097,-500.0,0.0001452,2]
[333876478,1722589848107,-500.0,0.0001452,2]
[333876479,1722589848116,-615.5,0.0001452,2]
[333876480,1722589848128,-500.0,0.0001452,2]
[333876481,1722589848138,-500.0,0.0001452,2]
[333876482,1722589848148,-500.0,0.0001452,2]
[333876483,1722589848158,-188.87324125,0.0001452,2]
[333876484,1722589848168,-500.0,0.0001452,2]
[333876485,1722589848181,-500.0,0.0001452,2]
[333876486,1722589848191,-500.0,0.0001452,2]
[333876487,1722589848200,-647.64,0.0001452,2]
[333876488,1722589848210,-500.0,0.0001452,2]
[333876489,1722589848220,-672.93,0.0001452,2]
[333876490,1722589848229,-206.9342036,0.00014521,2]
[333876491,1722589848325,-206.9342036,0.00014521,2]
[333876492,1722589848338,-206.9342036,0.00014521,2]
[333876493,1722589848347,-151.0,0.00014579,2]
[333876494,1722589848357,-151.0,0.00014579,2]
[333876495,1722589848367,-151.0,0.00014579,2]
[333876496,1722589848377,-2403.6,0.00014579,2]
[333876497,1722589848386,-500.0,0.00014589,2]
[333876498,1722589848396,-2403.6,0.00014589,2]
[333876499,1722589848405,-177.609964,0.0001459,2]
[333876500,1722589848415,-177.609964,0.0001459,2]
[333876501,1722589848427,-151.0,0.0001459,2]
[333876502,1722589848437,-241.993688,0.0001459,2]
[333876503,1722589848446,-1865.48314745,0.0001459,2]
[333876504,1722589848457,-153.0,0.00014658,2]
[333876505,1722589848468,-151.0,0.00014679,2]
[333876506,1722589848478,-151.0,0.00014679,2]
[333876507,1722589848489,-2403.6,0.00014679,2]
[333876508,1722589848499,-2403.6,0.00014679,2]
[333876509,1722589848510,-6481.7109753,0.0001468,2]
[333876510,1722589848520,-2403.6,0.00014688,2]
[333876511,1722589848530,-177.609964,0.00014689,2]
[333876512,1722589848540,-177.609964,0.00014689,2]
[333876513,1722589848550,-151.0,0.00014689,2]
[333876514,1722589848559,-500.0,0.00014689,2]
[333876515,1722589848570,-500.0,0.00014689,2]
[333876516,1722589848579,-500.0,0.00014689,2]
[333876517,1722589848590,-500.0,0.00014689,2]
[333876518,1722589848599,-500.0,0.00014689,2]
[333876519,1722589848609,-280.05291229,0.00014689,2]
[333876520,1722589848618,-293.596341,0.00014689,2]
[333876521,1722589848628,-293.596341,0.00014689,2]
[333876522,1722589848637,-151.0,0.00014689,2]
[333876523,1722589848646,-157.661468,0.00014689,2]
[333876524,1722589848656,-157.661468,0.00014689,2]
[333876525,1722589848668,-151.0,0.00014689,2]
[333876526,1722589848681,-221.042937,0.00014689,2]
[333876527,1722589848692,-151.0,0.00014689,2]
[333876528,1722589848702,-151.0,0.00014689,2]
[333876529,1722589848711,-2403.6,0.00014689,2]
[333876530,1722589848721,-2403.6,0.00014689,2]
[333876531,1722589848731,-2403.6,0.00014689,2]
[333876532,1722589848740,-2403.6,0.00014689,2]
[333876533,1722589848750,-2403.60435308,0.00014689,2]
[333876534,1722589848760,-527.12854331,0.0001469,2]
[333876535,1722589848770,-1566.45502666,0.0001469,2]
[333876536,1722589848780,-154.74467129,0.0001469,2]
[333876537,1722589848789,-335.6564105,0.0001469,2]
[333876538,1722589848799,-373.3966575,0.0001469,2]
[333876539,1722589848810,-30000.0,0.0001469,2]
[333876540,1722589848821,-151.0,0.0001469,2]
[333876541,1722589848831,-151.0,0.0001469,2]
[333876542,1722589848841,-151.0,0.0001469,2]
[333876543,1722589848850,-151.0,0.0001469,2]
[333876544,1722589848860,-151.0,0.0001469,2]
[333876545,1722589848869,-151.0,0.0001469,2]
[333876546,1722589848878,-151.0,0.0001469,2]
[333876547,1722589848887,-151.0,0.0001469,2]
[333876548,1722589848898,-151.0,0.0001469,2]
[333876549,1722589848907,-151.0,0.0001469,2]
[333876550,1722589848917,-151.0,0.0001469,2]
[333876551,1722589848929,-151.0,0.0001469,2]
[333876552,1722589848938,-151.0,0.0001469,2]
[333876553,1722589848947,-151.0,0.0001469,2]
[333876554,1722589848956,-151.0,0.0001469,2]
[333876555,1722589848967,-245.568076,0.0001469,2]
[333876556,1722589848976,-247.698763,0.0001469,2]
[333876557,1722589848987,-245.568076,0.0001469,2]
[333876558,1722589848997,-247.698763,0.0001469,2]
[333876559,1722589849007,-272.976868,0.0001469,2]
[333876560,1722589849017,-272.976868,0.0001469,2]
[333876561,1722589849027,-216.491155,0.0001469,2]
[333876562,1722589849036,-216.491155,0.0001469,2]
[333876563,1722589849047,-151.0,0.0001469,2]
[333876564,1722589849062,-151.0,0.0001469,2]
[333876565,1722589849072,-2160.5703251,0.00014784,2]
[333876566,1722589849082,-1736.52,0.00014793,2]
[333876567,1722589849095,-21983.83636328,0.00014794,5]
[333876568,1722589849106,-500.0,0.00014794,2]
[333876569,1722589849116,-500.0,0.00014794,2]
[333876570,1722589849127,-500.0,0.00014794,2]
[333876571,1722589849146,-151.0,0.00014794,2]
[333876572,1722589849155,-151.0,0.00014794,2]
[333876573,1722589849165,-500.0,0.00014794,2]
[333876574,1722589849175,-500.0,0.00014794,2]
[333876575,1722589849185,-500.0,0.00014794,2]
[333876576,1722589849196,-818.52,0.00014794,2]
[333876577,1722589849206,-500.0,0.00014794,2]
[333876578,1722589849217,-500.0,0.00014794,2]
[333876579,1722589849228,-651.14,0.00014794,2]
[333876580,1722589849238,-543.75,0.00014794,2]
[333876581,1722589849247,-500.0,0.00014794,2]
[333876582,1722589849258,-500.0,0.00014794,2]
[333876583,1722589849268,-500.0,0.00014794,2]
[333876584,1722589849278,-500.0,0.00014794,2]
[333876585,1722589849288,-509.39,0.00014794,2]
[333876586,1722589849298,-500.0,0.00014794,2]
[333876587,1722589849308,-228.09513392,0.00014794,2]
[333876588,1722589849318,-500.0,0.00014794,2]
[333876589,1722589849327,-500.0,0.00014794,2]
[333876590,1722589849337,-500.0,0.00014794,2]
[333876591,1722589849346,-500.0,0.00014794,2]
[333876592,1722589849356,-500.0,0.00014794,2]
[333876593,1722589849366,-501.43,0.00014794,2]
[333876594,1722589849375,-577.4,0.00014794,2]
[333876595,1722589849385,-500.0,0.00014794,2]
[333876596,1722589849394,-2059.62,0.00014794,2]
[333876597,1722589849405,-500.0,0.00014794,2]
[333876598,1722589849415,-500.0,0.00014794,2]
[333876599,1722589849426,-1764.26,0.00014794,2]
[333876600,1722589849436,-807.78,0.00014794,2]
[333876601,1722589849446,-500.0,0.00014794,2]
[333876602,1722589849456,-500.0,0.00014794,2]
[333876603,1722589849465,-500.0,0.00014794,2]
[333876604,1722589849474,-500.0,0.00014794,2]
[333876605,1722589849484,-627.6966431,0.00014794,2]
[333876606,1722589849494,-234.51,0.00014794,2]
[333876607,1722589849504,-500.0,0.00014794,2]
[333876608,1722589849513,-500.0,0.00014794,2]
[333876609,1722589849523,-500.0,0.00014794,2]
[333876610,1722589849532,-500.0,0.00014794,2]
[333876611,1722589849542,-2047.2,0.00014794,2]
[333876612,1722589849552,-848.28,0.00014794,2]
[333876613,1722589849562,-500.0,0.00014794,2]
[333876614,1722589849571,-387.64760076,0.00014794,2]
[333876615,1722589849581,-595.21272161,0.00014794,2]
[333876616,1722589849590,-500.0,0.00014794,2]
[333876617,1722589849600,-644.32,0.00014794,2]
[333876618,1722589849611,-500.0,0.00014794,2]
[333876619,1722589849620,-500.0,0.00014794,2]
[333876620,1722589849630,-898.01,0.00014794,2]
[333876621,1722589849640,-500.0,0.00014794,2]
[333876622,1722589849650,-500.0,0.00014794,2]
[333876623,1722589849659,-500.0,0.00014794,2]
[333876624,1722589849669,-500.0,0.00014794,2]
[333876625,1722589849680,-500.0,0.00014794,2]
[333876626,1722589849689,-500.0,0.00014794,2]
[333876627,1722589849699,-500.0,0.00014794,2]
[333876628,1722589849710,-500.0,0.00014794,2]
[333876629,1722589849719,-615.5,0.00014794,2]
[333876630,1722589849729,-500.0,0.00014794,2]
[333876631,1722589849738,-500.0,0.00014794,2]
[333876632,1722589849747,-500.0,0.00014794,2]
[333876633,1722589849757,-500.0,0.00014794,2]
[333876634,1722589849766,-500.0,0.00014794,2]
[333876635,1722589849777,-500.0,0.00014794,2]
[333876636,1722589849786,-500.0,0.00014794,2]
[333876637,1722589849795,-672.93,0.00014794,2]
[333876638,1722589849805,-151.0,0.00014817,2]
[333876639,1722589849815,-151.0,0.00014817,2]
[333876640,1722589849824,-282.229502,0.00014817,2]
[333876641,1722589849834,-150.167,0.00014817,2]
[333876642,1722589849843,-151.682,0.00014817,2]
[333876643,1722589849852,-513.021,0.00014817,2]
[333876644,1722589849862,-1410.0,0.00014817,2]
[333876645,1722589849871,-150.112233,0.000149,2]
[333876646,1722589849883,-176.34670944,0.00014999,2]
[333876647,1722589849894,-2847.71475529,0.00015,2]
[333876648,1722589849904,-1000.0,0.00015,15]
[333876649,1722589849914,-2553.55806036,0.00015,2]
[333876650,1722589849924,-150.112233,0.00015,2]
[333876651,1722589849934,-151.0,0.00015,2]
[333876652,1722589849943,-151.0,0.00015,2]
[333876653,1722589849952,-151.0,0.00015,2]
[333876654,1722589849962,-1826.51596998,0.00015,2]
[333876655,1722589849971,-678.61637837,0.00015027,2]
[333876656,1722589849982,-151.0,0.00015057,2]
[333876657,1722589849992,-151.0,0.00015058,2]
[333876658,1722589850001,-151.0,0.00015058,2]
[333876659,1722589850010,-151.0,0.00015058,2]
[333876660,1722589850019,-151.0,0.00015058,2]
[333876661,1722589850029,-1736.52,0.00015067,2]
[333876662,1722589850039,-177.609964,0.00015067,2]
[333876663,1722589850050,-177.609964,0.00015067,2]
[333876664,1722589850062,-151.0,0.00015067,2]
[333876665,1722589850071,-151.0,0.00015067,2]
[333876666,1722589850081,-151.0,0.00015067,2]
[333876667,1722589850091,-220.132914,0.00015067,2]
[333876668,1722589850101,-151.0,0.00015068,2]
[333876669,1722589850111,-500.0,0.00015068,2]
[333876670,1722589850120,-151.0,0.00015068,2]
[333876671,1722589850131,-151.0,0.00015068,2]
[333876672,1722589850141,-185.311005,0.00015068,2]
[333876673,1722589850150,-151.0,0.00015068,2]
[333876674,1722589850160,-500.0,0.00015068,2]
[333876675,1722589850169,-500.0,0.00015068,2]
[333876676,1722589850181,-500.0,0.00015068,2]
[333876677,1722589850190,-500.0,0.00015068,2]
[333876678,1722589850200,-500.0,0.00015068,2]
[333876679,1722589850210,-818.52,0.00015068,2]
[333876680,1722589850221,-500.0,0.00015068,2]
[333876681,1722589850229,-500.0,0.00015068,2]
[333876682,1722589850239,-651.14,0.00015068,2]
[333876683,1722589850248,-500.0,0.00015068,2]
[333876684,1722589850258,-500.0,0.00015068,2]
[333876685,1722589850268,-500.0,0.00015068,2]
[333876686,1722589850277,-500.0,0.00015068,2]
[333876687,1722589850287,-509.39,0.00015068,2]
[333876688,1722589850296,-500.0,0.00015068,2]
[333876689,1722589850306,-500.0,0.00015068,2]
[333876690,1722589850315,-151.0,0.00015068,2]
[333876691,1722589850325,-500.0,0.00015068,2]
[333876692,1722589850334,-500.0,0.00015068,2]
[333876693,1722589850344,-500.0,0.00015068,2]
[333876694,1722589850353,-293.596341,0.00015068,2]
[333876695,1722589850363,-293.596341,0.00015068,2]
[333876696,1722589850373,-151.0,0.00015068,2]
[333876697,1722589850382,-500.0,0.00015068,2]
[333876698,1722589850392,-501.43,0.00015068,2]
[333876699,1722589850403,-577.4,0.00015068,2]
[333876700,1722589850412,-500.0,0.00015068,2]
[333876701,1722589850422,-2059.62,0.00015068,2]
[333876702,1722589850434,-500.0,0.00015068,2]
[333876703,1722589850447,-500.0,0.00015068,2]
[333876704,1722589850456,-157.661468,0.00015068,2]
[333876705,1722589850466,-1764.26,0.00015068,2]
[333876706,1722589850475,-157.661468,0.00015068,2]
[333876707,1722589850485,-807.78,0.00015068,2]
[333876708,1722589850495,-500.0,0.00015068,2]
[333876709,1722589850504,-500.0,0.00015068,2]
[333876710,1722589850513,-500.0,0.00015068,2]
[333876711,1722589850522,-500.0,0.00015068,2]
[333876712,1722589850533,-500.0,0.00015068,2]
[333876713,1722589850543,-500.0,0.00015068,2]
[333876714,1722589850552,-500.0,0.00015068,2]
[333876715,1722589850644,-500.0,0.00015068,2]
[333876716,1722589850654,-856.46278216,0.00015068,2]
[333876717,1722589850936,-500.0,0.00013698,2]
[333876718,1722589850945,-1190.73721784,0.00015068,2]
[333876719,1722589850955,-848.28,0.00015068,2]
[333876720,1722589850965,-151.0,0.00015068,2]
[333876721,1722589850974,-500.0,0.00015068,2]
[333876722,1722589850984,-500.0,0.00015068,2]
[333876723,1722589850994,-644.32,0.00015068,2]
[333876724,1722589851004,-500.0,0.00015068,2]
[333876725,1722589851013,-500.0,0.00015068,2]
[333876726,1722589851022,-245.568076,0.00015068,2]
[333876727,1722589851032,-898.01,0.00015068,2]
[333876728,1722589851043,-500.0,0.00015068,2]
[333876729,1722589851055,-247.698763,0.00015068,2]
[333876730,1722589851064,-500.0,0.00015068,2]
[333876731,1722589851074,-245.568076,0.00015068,2]
[333876732,1722589851083,-247.698763,0.00015068,2]
[333876733,1722589851094,-623.94110325,0.00015068,2]
[333876734,1722589851104,-500.0,0.00015068,2]
[333876735,1722589851113,-500.0,0.00015068,2]
[333876736,1722589851122,-272.976868,0.00015068,2]
[333876737,1722589851134,-500.0,0.00015068,2]
[333876738,1722589851144,-500.0,0.00015068,2]
[333876739,1722589851153,-500.0,0.00015068,2]
[333876740,1722589851163,-615.5,0.00015068,2]
[333876741,1722589851172,-272.976868,0.00015068,2]
[333876742,1722589851184,-173.30324649,0.00015068,2]
[333876743,1722589851196,-326.69675351,0.00015068,2]
[333876744,1722589851205,-216.491155,0.00015068,2]
[333876745,1722589851214,-500.0,0.00015068,2]
[333876746,1722589851223,-216.491155,0.00015068,2]
[333876747,1722589851232,-500.0,0.00015068,2]
[333876748,1722589851241,-151.0,0.00015068,2]
[333876749,1722589851250,-500.0,0.00015068,2]
[333876750,1722589851259,-500.0,0.00015068,2]
[333876751,1722589851269,-500.0,0.00015068,2]
[333876752,1722589851278,-500.0,0.00015068,2]
[333876753,1722589851287,-672.93,0.00015068,2]
[333876754,1722589851297,-294.2025256,0.00015151,2]
[333876755,1722589851306,-3000.0,0.000153,2]
[333876756,1722589851315,-150.112233,0.000153,2]
[333876757,1722589851325,-154.080336,0.00015341,2]
[333876758,1722589851333,-151.0,0.00015341,2]
[333876759,1722589851342,-1736.52,0.00015341,2]
[333876760,1722589851352,-151.0,0.00015341,2]
[333876761,1722589851362,-151.0,0.00015341,2]
[333876762,1722589851371,-500.0,0.00015342,2]
[333876763,1722589851380,-151.0,0.00015342,2]
[333876764,1722589851389,-151.0,0.00015342,2]
[333876765,1722589851399,-151.0,0.00015342,2]
[333876766,1722589851408,-500.0,0.00015342,2]
[333876767,1722589851418,-500.0,0.00015342,2]
[333876768,1722589851429,-500.0,0.00015342,2]
[333876769,1722589851437,-500.0,0.00015342,2]
[333876770,1722589851446,-500.0,0.00015342,2]
[333876771,1722589851455,-818.52,0.00015342,2]
[333876772,1722589851465,-500.0,0.00015342,2]
[333876773,1722589851474,-500.0,0.00015342,2]
[333876774,1722589851484,-500.0,0.00015342,2]
[333876775,1722589851495,-500.0,0.00015342,2]
[333876776,1722589851506,-500.0,0.00015342,2]
[333876777,1722589851516,-210.22,0.00015342,2]
[333876778,1722589851527,-509.39,0.00015342,2]
[333876779,1722589851537,-500.0,0.00015342,2]
[333876780,1722589851546,-500.0,0.00015342,2]
[333876781,1722589851556,-500.0,0.00015342,2]
[333876782,1722589851566,-500.0,0.00015342,2]
[333876783,1722589851576,-500.0,0.00015342,2]
[333876784,1722589851588,-500.0,0.00015342,2]
[333876785,1722589851600,-501.43,0.00015342,2]
[333876786,1722589851609,-577.4,0.00015342,2]
[333876787,1722589851619,-500.0,0.00015342,2]
[333876788,1722589851628,-2059.62,0.00015342,2]
[333876789,1722589851638,-500.0,0.00015342,2]
[333876790,1722589851648,-500.0,0.00015342,2]
[333876791,1722589851657,-1764.26,0.00015342,2]
[333876792,1722589851667,-807.78,0.00015342,2]
[333876793,1722589851676,-151.0,0.00015342,2]
[333876794,1722589851686,-500.0,0.00015342,2]
[333876795,1722589851695,-500.0,0.00015342,2]
[333876796,1722589851705,-500.0,0.00015342,2]
[333876797,1722589851715,-500.0,0.00015342,2]
[333876798,1722589851725,-500.0,0.00015342,2]
[333876799,1722589851734,-452.03582169,0.00015342,2]
[333876800,1722589851744,-500.0,0.00015342,2]
[333876801,1722589851754,-206.42,0.00015342,2]
[333876802,1722589851763,-2047.2,0.00015342,2]
[333876803,1722589851773,-848.28,0.00015342,2]
[333876804,1722589851782,-500.0,0.00015342,2]
[333876805,1722589851791,-500.0,0.00015342,2]
[333876806,1722589851801,-644.32,0.00015342,2]
[333876807,1722589851810,-367.44953157,0.00015342,2]
[333876808,1722589851819,-500.0,0.00015342,2]
[333876809,1722589851828,-898.01,0.00015342,2]
[333876810,1722589851838,-287.71065619,0.00015342,2]
[333876811,1722589851847,-503.8166038,0.00015342,2]
[333876812,1722589851856,-500.0,0.00015342,2]
[333876813,1722589851866,-500.0,0.00015342,2]
[333876814,1722589851878,-500.0,0.00015342,2]
[333876815,1722589851888,-558.50030875,0.00015342,2]
[333876816,1722589851898,-500.0,0.00015342,2]
[333876817,1722589851908,-615.5,0.00015342,2]
[333876818,1722589851920,-500.0,0.00015342,2]
[333876819,1722589851930,-500.0,0.00015342,2]
[333876820,1722589851940,-500.0,0.00015342,2]
[333876821,1722589851949,-500.0,0.00015342,2]
[333876822,1722589851958,-211.68444041,0.00015342,2]
[333876823,1722589851967,-500.0,0.00015342,2]
[333876824,1722589851977,-500.0,0.00015342,2]
[333876825,1722589851986,-672.93,0.00015342,2]
[333876826,1722589851995,-3200.0,0.00015521,2]
[333876827,1722589852004,-150.0,0.00015521,2]
[333876828,1722589852013,-151.0,0.00015521,2]
[333876829,1722589852022,-151.0,0.00015615,2]
[333876830,1722589852031,-1736.52,0.00015615,2]
[333876831,1722589852040,-151.0,0.00015615,2]
[333876832,1722589852051,-177.609964,0.00015615,2]
[333876833,1722589852062,-177.609964,0.00015615,2]
[333876834,1722589852071,-151.0,0.00015615,2]
[333876835,1722589852080,-500.0,0.00015616,2]
[333876836,1722589852091,-500.0,0.00015616,2]
[333876837,1722589852102,-500.0,0.00015616,2]
[333876838,1722589852112,-187.46890334,0.00015616,2]
[333876839,1722589852123,-502.44655133,0.00015616,2]
[333876840,1722589852135,-818.52,0.00015616,2]
[333876841,1722589852144,-500.0,0.00015616,2]
[333876842,1722589852153,-500.0,0.00015616,2]
[333876843,1722589852162,-500.0,0.00015616,2]
[333876844,1722589852173,-500.0,0.00015616,2]
[333876845,1722589852184,-500.0,0.00015616,2]
[333876846,1722589852194,-509.39,0.00015616,2]
[333876847,1722589852206,-500.0,0.00015616,2]
[333876848,1722589852216,-500.0,0.00015616,2]
[333876849,1722589852227,-151.0,0.00015616,2]
[333876850,1722589852236,-500.0,0.00015616,2]
[333876851,1722589852247,-486.08816361,0.00015616,2]
[333876852,1722589852257,-500.0,0.00015616,2]
[333876853,1722589852268,-293.596341,0.00015616,2]
[333876854,1722589852279,-293.596341,0.00015616,2]
[333876855,1722589852289,-151.0,0.00015616,2]
[333876856,1722589852300,-500.0,0.00015616,2]
[333876857,1722589852310,-501.43,0.00015616,2]
[333876858,1722589852322,-577.4,0.00015616,2]
[333876859,1722589852332,-500.0,0.00015616,2]
[333876860,1722589852343,-2035.1409292,0.00015616,2]
[333876861,1722590268042,6207.8,0.00027,120]
[333877001,1722591040143,-162.42091,0.00012986,2]
[333877002,1722591040153,-1635.59906082,0.00013588,2]
[333877003,1722591040166,-727.09523986,0.00013588,2]
[333877004,1722591040175,-1106.40843567,0.00013597,2]
[333877005,1722591040187,-12.8814528,0.00013597,2]
[333877006,1722591040196,-1192.62975219,0.00013687,2]
[333877007,1722591040208,-981.05024781,0.00013687,2]
[333877008,1722591040218,-2173.68,0.00013687,2]
[333877009,1722591040227,-6163.22618158,0.00013688,2]
[333877010,1722591040239,-154058.57436642,0.00013688,2]
[333877011,1722591040249,-2173.68,0.00013697,2]
[333877012,1722591040259,-2173.68,0.00013697,2]
[333877013,1722591040269,-2173.68,0.00013697,2]
[333877014,1722591040278,-2173.68,0.00013697,2]
[333877015,1722591040287,-2173.68,0.00013697,2]
[333877016,1722591040297,-500.0,0.00013698,2]
[333877017,1722591040306,-500.0,0.00013698,2]
[333877018,1722591040316,-500.0,0.00013698,2]
[333877019,1722591040326,-502.24355797,0.00013698,2]
[333877020,1722591040336,-500.0,0.00013698,2]
[333877021,1722591040345,-500.0,0.00013698,2]
[333877022,1722591040355,-504.58178592,0.00013698,2]
[333877023,1722591040364,-331.74035403,0.00013698,2]
[333877024,1722591040373,-500.0,0.00013698,2]
[333877025,1722591040383,-500.0,0.00013698,2]
[333877026,1722591040392,-500.0,0.00013698,2]
[333877027,1722591040401,-500.0,0.00013698,2]
[333877028,1722591040410,-505.80608488,0.00013698,2]
[333877029,1722591040419,-639.77334365,0.00013698,2]
[333877030,1722591040429,-504.50142862,0.00013698,2]
[333877031,1722591040438,-501.03496501,0.00013698,2]
[333877032,1722591040447,-500.0,0.00013698,2]
[333877033,1722591040457,-221.41746032,0.00013698,2]
[333877034,1722591040467,-500.0,0.00013698,2]
[333877035,1722591040479,-423.92609891,0.00013698,2]
[333877037,1722591040489,-500.0,0.00013698,2]
[333877039,1722591040498,-530.07043788,0.00013698,2]
[333877041,1722591040507,-500.0,0.00013698,2]
[333877043,1722591040517,-500.0,0.00013698,2]
[333877045,1722591040527,-500.0,0.00013698,2]
[333877047,1722591040536,-472.48326461,0.00013698,2]
[333877049,1722591040546,-501.08986428,0.00013698,2]
[333877051,1722591040557,-500.0,0.00013698,2]
[333877053,1722591040567,-510.24573408,0.00013698,2]
[333877055,1722591040577,-550.18554681,0.00013698,2]
[333877057,1722591040586,-500.0,0.00013698,2]
[333877059,1722591040595,-500.0,0.00013698,2]
[333877061,1722591040605,-500.0,0.00013698,2]
[333877063,1722591040614,-558.57406143,0.00013698,2]
[333877065,1722591040623,-500.0,0.00013698,2]
[333877067,1722591040633,-500.0,0.00013698,2]
[333877069,1722591040642,-507.91760424,0.00013698,2]
[333877071,1722591040652,-510.79364458,0.00013698,2]
[333877073,1722591040661,-500.0,0.00013698,2]
[333877075,1722591040670,-507.51126654,0.00013698,2]
[333877077,1722591040679,-505.74303105,0.00013698,2]
[333877079,1722591040689,-504.17918493,0.00013698,2]
[333877081,1722591040698,-332.52598579,0.00013698,2]
[333877082,1722591040708,-327.79382938,0.00013698,2]
[333877084,1722591040718,-302.66513445,0.00013698,2]
[333877087,1722591040728,-502.2283621,0.00013698,2]
[333877089,1722591040739,-500.0,0.00013698,2]
[333877090,1722591040748,-500.0,0.00013698,2]
[333877093,1722591040757,-500.0,0.00013698,2]
[333877095,1722591040767,-500.0,0.00013698,2]
[333877097,1722591040778,-191.81604649,0.00013698,2]
[333877099,1722591040787,-498.22269994,0.00013698,2]
[333877101,1722591040797,-500.0,0.00013698,2]
[333877103,1722591040807,-500.0,0.00013698,2]
[333877105,1722591040817,-500.0,0.00013698,2]
[333877107,1722591040827,-500.0,0.00013698,2]
[333877109,1722591040837,-500.0,0.00013698,2]
[333877111,1722591040847,-500.0,0.00013698,2]
[333877113,1722591040856,-500.0,0.00013698,2]
[333877115,1722591040866,-504.73581637,0.00013698,2]
[333877117,1722591040876,-500.0,0.00013698,2]
[333877119,1722591040887,-500.0,0.00013698,2]
[333877122,1722591040900,-500.0,0.00013698,2]
[333877124,1722591040910,-500.0,0.00013698,2]
[333877126,1722591040920,-500.0,0.00013698,2]
[333877128,1722591040930,-500.0,0.00013698,2]
[333877130,1722591040940,-500.0,0.00013698,2]
[333877132,1722591040949,-500.0,0.00013698,2]
[333877134,1722591040959,-500.0,0.00013698,2]
[333877136,1722591040969,-582.3922669,0.00013698,2]
[333877138,1722591040979,-500.0,0.00013698,2]
[333877140,1722591040989,-500.0,0.00013698,2]
[333877142,1722591040999,-500.0,0.00013698,2]
[333877144,1722591041008,-500.0,0.00013698,2]
[333877146,1722591041018,-500.0,0.00013698,2]
[333877148,1722591041027,-500.0,0.00013698,2]
[333877150,1722591041037,-645.68328274,0.00013698,2]
[333877152,1722591041046,-526.24620775,0.00013698,2]
[333877154,1722591041056,-500.0,0.00013698,2]
[333877156,1722591041066,-500.0,0.00013698,2]
[333877158,1722591041075,-410.93632959,0.00013698,2]
[333877160,1722591041085,-500.0,0.00013698,2]
[333877162,1722591041095,-500.0,0.00013698,2]
[333877164,1722591041105,-504.27712946,0.00013698,2]
[333877166,1722591041114,-500.0,0.00013698,2]